bitfinex-derivatives/quotes_BTCF0:USTF0_20250327
["timestamp","ask_amount","ask_price","bid_price","bid_amount"]
[1743083407444,0.1160835,86169.0,86168.0,0.00017408]
[1743083407643,0.1167635,86169.0,86168.0,0.00097408]
[1743083408140,0.8543635,86169.0,86168.0,0.00025408]
[1743083408347,0.8543635,86169.0,86168.0,0.00017408]
[1743083408747,0.9543635,86169.0,86168.0,0.00017408]
[1743083409040,0.83828,86169.0,86168.0,0.12025888]
[1743083409539,0.83828,86169.0,86168.0,0.12113888]
[1743083409744,0.9543635,86169.0,86168.0,0.12113888]
[1743083409939,0.9543635,86169.0,86168.0,0.36693888]
[1743083410247,0.9543635,86169.0,86168.0,0.49265408]
[1743083410438,0.9543635,86169.0,86168.0,0.25085408]
[1743083410936,0.9543635,86169.0,86168.0,0.00505408]
[1743083411135,0.35088,86169.0,86168.0,0.12025888]
[1743083411337,0.2381,86189.0,86168.0,0.00497408]
[1743083411538,0.1160686,86184.0,86183.0,0.1160619]
[1743083411740,0.1160686,86184.0,86183.0,0.1171415]
[1743083411941,0.4779486,86184.0,86183.0,0.00108]
[1743083412239,0.116066,86182.0,86181.0,0.3641665]
[1743083412449,0.117066,86182.0,86181.0,0.3652465]
[1743083412646,0.602766,86182.0,86181.0,0.3652465]
[1743083413348,0.363366,86182.0,86181.0,0.3652465]
[1743083413538,0.363366,86182.0,86181.0,0.24918]
[1743083413739,0.702766,86182.0,86181.0,0.24918]
[1743083414942,0.3473,86182.0,86181.0,0.3652473]
[1743083415137,0.101,86182.0,86181.0,0.3652473]
[1743083415342,0.217066,86182.0,86181.0,0.6131473]
[1743083415544,0.101,86182.0,86181.0,0.6131473]
[1743083416347,0.101,86182.0,86181.0,0.6141473]
[1743083416544,0.101,86182.0,86181.0,0.9749473]
[1743083416743,0.1,86182.0,86181.0,1.1037473]
[1743083417053,0.1,86182.0,86181.0,0.7429473]
[1743083417351,0.10060001,86182.0,86181.0,0.7428673]
[1743083418053,0.10060001,86182.0,86181.0,0.7418673]
[1743083418249,0.10060001,86182.0,86181.0,1.1036673]
[1743083418447,0.09724,86182.0,86181.0,1.1036673]
[1743083419254,0.55491924,86203.0,86199.0,0.1160431]
[1743083419255,0.0386145,86200.0,86199.0,0.1160431]
[1743083419441,0.0396145,86200.0,86199.0,0.9674431]
[1743083419754,0.0386145,86200.0,86199.0,0.9674431]
[1743083421048,0.1386145,86200.0,86199.0,0.9674431]
[1743083421245,0.13609984,86203.0,86202.0,0.116039]
[1743083421439,0.13717984,86203.0,86202.0,0.117119]
[1743083421646,0.13609984,86203.0,86202.0,0.117119]
[1743083421847,0.13709984,86203.0,86202.0,0.117119]
[1743083422145,0.001,86203.0,86202.0,0.12567389]
[1743083422347,0.2519,86217.0,86216.0,0.1160202]
[1743083422554,0.25298,86217.0,86216.0,0.1171002]
[1743083422755,0.4689988,86217.0,86216.0,0.1171002]
[1743083422953,0.7158988,86217.0,86216.0,0.6026002]
[1743083423442,0.7158988,86217.0,86216.0,0.23558]
[1743083423642,1.0766988,86217.0,86216.0,0.00108]
[1743083424247,0.1160215,86215.0,86214.0,8e-05]
[1743083424450,0.1167015,86215.0,86214.0,0.0008]
[1743083424649,0.00068,86215.0,86214.0,0.1168229]
[1743083424853,0.1167015,86215.0,86214.0,0.1168229]
[1743083425456,0.2167015,86215.0,86214.0,0.1168229]
[1743083426041,0.10068,86215.0,86214.0,0.1168229]
[1743083426453,0.1,86215.0,86214.0,0.1168229]
[1743083426647,0.1,86215.0,86214.0,0.5893229]
[1743083426856,0.1,86215.0,86214.0,0.60088805]
[1743083427161,0.0285293,86215.0,86214.0,0.60088805]
[1743083427356,0.2535,86234.0,86233.0,0.1159973]
[1743083427565,0.13681984,86246.0,86245.0,0.1159812]
[1743083427752,0.13749984,86246.0,86245.0,0.1166612]
[1743083427947,0.13677984,86246.0,86245.0,0.1166612]
[1743083428261,0.13677984,86246.0,86245.0,0.12546826]
[1743083429159,0.23677984,86246.0,86245.0,0.12546826]
[1743083429755,0.23677984,86246.0,86245.0,0.36286826]
[1743083429959,0.10068,86246.0,86245.0,0.36286826]
[1743083430154,0.10068,86246.0,86245.0,0.60656826]
[1743083431258,0.10068,86246.0,86245.0,0.36286826]
[1743083431856,0.10068,86246.0,86245.0,0.60666826]
[1743083432260,0.10068,86246.0,86245.0,0.5978612]
[1743083432458,0.1,86246.0,86245.0,0.5978612]
[1743083432658,0.1,86246.0,86245.0,0.60654928]
[1743083433458,0.1,86246.0,86245.0,0.73526928]
[1743083434061,0.1,86246.0,86245.0,0.97236928]
[1743083436770,0.3525489,86269.0,86268.0,0.1159502]
[1743083436956,0.1159516,86267.0,86266.0,0.12868]
[1743083437161,0.1166316,86267.0,86266.0,0.1294]
[1743083437358,0.1166316,86267.0,86266.0,0.12868]
[1743083437569,0.115961,86261.0,86260.0,0.0579805]
[1743083437769,0.116681,86261.0,86260.0,0.1873805]
[1743083437958,0.366881,86261.0,86260.0,0.1873805]
[1743083438160,0.714781,86261.0,86260.0,0.1873805]
[1743083438467,0.714781,86261.0,86260.0,0.0587005]
[1743083438965,0.714781,86261.0,86260.0,0.00072]
[1743083439166,0.706781,86261.0,86260.0,0.00072]
[1743083439371,0.456581,86261.0,86260.0,0.00072]
[1743083439763,0.115961,86260.0,86259.0,0.00017397]
[1743083440069,0.614041,86260.0,86259.0,0.00101397]
[1743083440263,0.614041,86260.0,86259.0,0.00017397]
[1743083440971,0.714041,86260.0,86259.0,0.00017397]
[1743083443068,0.714041,86260.0,86259.0,0.11613627]
[1743083443275,0.59808,86260.0,86259.0,0.11689627]
[1743083443574,0.714041,86260.0,86259.0,0.36249627]
[1743083444361,0.714041,86260.0,86259.0,0.00093397]
[1743083444568,0.714041,86260.0,86259.0,0.00017397]
[1743083444767,0.714041,86260.0,86259.0,0.11613627]
[1743083445176,0.714041,86260.0,86259.0,0.00017397]
[1743083448970,0.1159623,86259.0,86252.0,8e-05]
[1743083449177,0.1159623,86259.0,86246.0,8e-05]
[1743083449178,0.1159785,86247.0,86246.0,8e-05]
[1743083449380,0.1159785,86247.0,86234.0,8e-05]
[1743083449381,0.115996,86234.0,86233.0,0.20775847]
[1743083449566,0.477476,86234.0,86233.0,0.20847847]
[1743083449772,0.956376,86234.0,86233.0,0.20847847]
[1743083449971,0.956376,86234.0,86233.0,0.00072]
[1743083450171,1.056376,86234.0,86233.0,0.00072]
[1743083450367,0.116,86231.0,86230.0,0.20783847]
[1743083450572,0.11668,86231.0,86230.0,0.20855847]
[1743083450773,0.11668,86231.0,86230.0,0.20847847]
[1743083450972,0.24532,86231.0,86230.0,0.20847847]
[1743083451276,0.058004,86225.0,86221.0,0.34645069]
[1743083451475,0.058004,86225.0,86221.0,0.34705069]
[1743083451476,0.4768121,86222.0,86221.0,0.34705069]
[1743083451682,0.4775721,86222.0,86221.0,0.34705069]
[1743083452280,0.6062121,86222.0,86221.0,0.34705069]
[1743083452676,0.1167721,86222.0,86221.0,0.46306419]
[1743083452871,0.1167721,86222.0,86221.0,0.34705069]
[1743083453679,0.7028721,86222.0,86221.0,0.34705069]
[1743083454777,0.1160229,86214.0,86213.0,0.00017397]
[1743083455078,0.00092,86214.0,86213.0,0.00017397]
[1743083455285,0.6021202,86216.0,86215.0,0.1160215]
[1743083455579,0.60308021,86216.0,86215.0,0.1166215]
[1743083455967,0.00017397,86222.0,86221.0,0.1160135]
[1743083456171,0.00017397,86222.0,86221.0,0.1166135]
[1743083456377,0.00077398,86222.0,86221.0,0.7500535]
[1743083456579,0.00017397,86222.0,86221.0,0.7500535]
[1743083456773,0.00085397,86222.0,86221.0,0.7500535]
[1743083456975,0.00017397,86222.0,86221.0,0.7500535]
[1743083457281,0.10017397,86222.0,86221.0,0.7500535]
[1743083458182,0.21618607,86222.0,86221.0,0.7500935]
[1743083458377,0.21678608,86222.0,86221.0,0.7520935]
[1743083458574,0.10077398,86222.0,86221.0,0.7520935]
[1743083458978,0.10077398,86222.0,86221.0,0.7500935]
[1743083459176,0.10077398,86222.0,86221.0,0.7520935]
[1743083459779,0.10077398,86222.0,86221.0,0.7510935]
[1743083460574,0.21678608,86222.0,86221.0,0.7510935]
[1743083460780,0.69908608,86222.0,86221.0,0.38488]
[1743083461083,0.69908608,86222.0,86221.0,0.5008935]
[1743083461687,0.69908608,86222.0,86221.0,0.3722135]
[1743083461876,0.58307398,86222.0,86221.0,0.3722135]
[1743083462077,0.69908608,86222.0,86221.0,0.6270135]
[1743083462278,0.69908608,86222.0,86221.0,0.3722135]
[1743083462478,0.69908608,86222.0,86221.0,0.2562]
[1743083462985,0.69908608,86222.0,86221.0,0.0016]
[1743083463282,0.69908608,86222.0,86221.0,0.001]
[1743083463677,0.69908608,86222.0,86221.0,0.0016]
[1743083463878,0.69908608,86222.0,86221.0,0.1176135]
[1743083464377,0.69908608,86222.0,86221.0,0.3543135]
[1743083464579,0.33607398,86222.0,86221.0,0.3543135]
[1743083464884,0.45208608,86222.0,86221.0,0.3543135]
[1743083465085,0.45208608,86222.0,86221.0,0.6004135]
[1743083465285,0.69978608,86222.0,86221.0,0.6004135]
[1743083465684,0.69978608,86222.0,86221.0,0.2477]
[1743083466389,0.69978608,86222.0,86221.0,0.0006]
[1743083466686,0.1160161,86219.0,86218.0,8e-05]
[1743083466892,0.1160229,86214.0,86213.0,0.00017397]
[1743083467188,0.1166629,86214.0,86213.0,0.00017397]
[1743083467387,0.6122629,86214.0,86213.0,0.00017397]
[1743083467986,0.6122629,86214.0,86194.0,0.00174031]
[1743083467987,0.0580188,86203.0,86194.0,0.00174031]
[1743083468191,0.1160444,86198.0,86197.0,0.25738]
[1743083468400,0.1740643,86200.0,86199.0,0.1160417]
[1743083468588,0.24030001,86202.0,86201.0,0.1160404]
[1743083468884,0.0580075,86220.0,86201.0,0.00064]
[1743083469195,0.1740416,86212.0,86211.0,0.1160265]
[1743083469385,0.1748016,86212.0,86211.0,0.1160265]
[1743083469586,0.48944,86212.0,86199.0,0.005]
[1743083469793,0.1160417,86200.0,86199.0,0.00584]
[1743083469988,0.1168017,86200.0,86199.0,0.1218831]
[1743083470188,0.1168017,86200.0,86199.0,0.1168831]
[1743083470498,0.1168017,86200.0,86199.0,0.00084]
[1743083470685,0.3504017,86200.0,86199.0,0.1168831]
[1743083470885,0.00076,86200.0,86199.0,0.1168831]
[1743083471085,0.1168017,86200.0,86199.0,0.6096831]
[1743083471393,0.1168017,86200.0,86199.0,0.25284]
[1743083471586,0.1168017,86200.0,86199.0,0.3688831]
[1743083471781,0.3572017,86200.0,86199.0,0.25284]
[1743083471982,0.4572017,86200.0,86199.0,0.3688831]
[1743083472396,0.4572017,86200.0,86199.0,0.25284]
[1743083472593,0.4572017,86200.0,86199.0,0.3688831]
[1743083472794,0.10076,86200.0,86199.0,0.3738831]
[1743083472997,0.0580136,86211.0,86204.0,0.0580175]
[1743083473299,0.2404,86217.0,86205.0,0.5028]
[1743083473490,0.36176001,86220.0,86214.0,0.1160216]
[1743083473688,0.1160202,86216.0,86215.0,0.5028]
[1743083473998,0.0580114,86214.0,86211.0,0.1160261]
[1743083474198,0.2984126,86213.0,86212.0,0.3653256]
[1743083474895,0.3608,86220.0,86219.0,0.1160161]
[1743083475197,0.00017397,86222.0,86221.0,0.1160135]
[1743083475390,0.00017397,86222.0,86220.0,0.1160135]
[1743083475587,0.00017397,86222.0,86221.0,0.5976135]
[1743083475794,0.1159873,86241.0,86240.0,0.0579937]
[1743083475995,0.3608,86245.0,86238.0,0.4816]
[1743083476299,0.0579933,86241.0,86240.0,0.1159879]
[1743083476504,0.1159862,86242.0,86241.0,0.1159839]
[1743083476694,0.13609984,86242.0,86241.0,0.1159839]
[1743083476891,0.13609984,86242.0,86241.0,0.5975839]
[1743083477196,0.1710562,86248.0,86247.0,0.1159785]
[1743083477395,0.1710562,86248.0,86247.0,0.1271955]
[1743083477591,0.1710562,86248.0,86247.0,0.1159785]
[1743083477995,0.13143682,86248.0,86247.0,0.12705196]
[1743083478192,0.18565452,86248.0,86247.0,0.75855196]
[1743083478396,0.20382421,86253.0,86252.0,0.1159718]
[1743083478595,0.20382421,86253.0,86252.0,0.4767718]
[1743083478789,0.20382421,86253.0,86252.0,0.4777318]
[1743083479199,0.20382421,86253.0,86252.0,0.6063718]
[1743083479591,0.30382421,86253.0,86252.0,0.6063718]
[1743083479793,0.30450421,86253.0,86252.0,0.6063718]
[1743083480695,0.10068,86253.0,86252.0,0.6063718]
[1743083481103,0.1,86253.0,86252.0,0.6063718]
[1743083482502,0.1,86253.0,86252.0,1.0916718]
[1743083483899,0.2159704,86253.0,86252.0,0.60036]
[1743083484090,0.101,86253.0,86252.0,0.7163318]
[1743083484294,0.1,86253.0,86252.0,0.7163318]
[1743083484496,0.21701041,86253.0,86252.0,0.7163318]
[1743083485000,0.21701041,86253.0,86252.0,0.36176]
[1743083485501,0.10104001,86253.0,86252.0,0.7153318]
[1743083485705,0.10104001,86253.0,86252.0,0.9688318]
[1743083485901,0.1,86253.0,86252.0,0.9688318]
[1743083486502,0.14149113,86803.0,86252.0,0.9688318]
[1743083486503,0.115943,86274.0,86260.0,0.115961]
[1743083486699,0.3608,86288.0,86260.0,0.477721]
[1743083486700,0.2467,86273.0,86260.0,0.477721]
[1743083486901,0.3046718,86273.0,86260.0,0.988821]
[1743083487101,0.0579744,86269.0,86260.0,0.988821]
[1743083487405,0.0579751,86269.0,86260.0,0.988821]
[1743083487602,0.2467,86268.0,86260.0,0.988821]
[1743083487791,0.00217329,86261.0,86260.0,0.988821]
[1743083488509,0.00217329,86261.0,86260.0,0.735121]
[1743083488812,0.0027733,86261.0,86260.0,0.735121]
[1743083489009,0.1027733,86261.0,86260.0,0.735121]
[1743083489205,0.467233,86261.0,86260.0,0.61916]
[1743083490108,0.828033,86261.0,86260.0,0.25836]
[1743083490313,0.828033,86261.0,86260.0,0.00096]
[1743083490602,0.1159623,86259.0,86258.0,8e-05]
[1743083490808,0.1159691,86255.0,86254.0,0.115969]
[1743083491007,0.1159664,86256.0,86255.0,0.1739482]
[1743083491208,0.2377,86258.0,86257.0,0.115965]
[1743083491509,0.35462371,86258.0,86257.0,0.116925]
[1743083491704,0.35462371,86258.0,86257.0,0.00096]
[1743083491905,0.35462371,86258.0,86257.0,0.359625]
[1743083492109,0.35462371,86258.0,86257.0,0.24366]
[1743083492309,0.35462371,86258.0,86257.0,0.00096]
[1743083493109,0.45462371,86258.0,86257.0,0.00096]
[1743083493804,0.1160013,86230.0,86225.0,0.70725069]
[1743083494001,0.3608,86241.0,86239.0,0.0579946]
[1743083494208,0.2404,86240.0,86239.0,0.1739838]
[1743083494400,0.3608,86241.0,86240.0,0.1159879]
[1743083494611,0.36148,86241.0,86240.0,0.3555879]
[1743083494907,0.36148,86241.0,86240.0,0.3562679]
[1743083495298,0.4774665,86241.0,86240.0,0.00068]
[1743083495497,0.1159906,86238.0,86237.0,8e-05]
[1743083495704,0.00060001,86238.0,86237.0,0.1159919]
[1743083495899,0.11659161,86238.0,86237.0,0.1166719]
[1743083496111,0.11659161,86238.0,86237.0,0.1159919]
[1743083496112,0.2159916,86238.0,86237.0,0.1159919]
[1743083496311,0.1159933,86236.0,86235.0,0.1739905]
[1743083496613,0.1159946,86235.0,86234.0,8e-05]
[1743083496805,0.1159946,86235.0,86232.0,0.36097397]
[1743083496806,0.1159973,86233.0,86232.0,0.36097397]
[1743083497007,0.1159973,86233.0,86232.0,0.47705267]
[1743083497214,0.3481973,86233.0,86232.0,0.47697267]
[1743083497409,0.5924973,86233.0,86232.0,0.47697267]
[1743083497606,1.0532973,86233.0,86232.0,0.00017397]
[1743083497915,1.0532973,86233.0,86230.0,8e-05]
[1743083497916,0.116,86231.0,86230.0,8e-05]
[1743083498309,0.1160202,86216.0,86214.0,0.46247309]
[1743083498503,0.1160202,86216.0,86215.0,0.91852]
[1743083498816,0.1160202,86216.0,86215.0,1.0345415]
[1743083499213,0.1160202,86216.0,86215.0,0.91852]
[1743083499409,0.5768202,86216.0,86215.0,0.91852]
[1743083499608,0.8194202,86216.0,86215.0,8e-05]
[1743083499805,0.1160215,86215.0,86214.0,0.34645069]
[1743083500008,0.3522215,86215.0,86214.0,0.34645069]
[1743083500210,0.1160256,86212.0,86211.0,0.1160267]
[1743083501013,0.2167056,86212.0,86211.0,0.1167067]
[1743083501214,0.10068,86212.0,86211.0,0.1167067]
[1743083501615,0.10068,86212.0,86211.0,0.2482667]
[1743083501921,0.09974603,86212.0,86211.0,0.2482667]
[1743083502212,0.02255873,86212.0,86211.0,0.2482667]
[1743083502410,3e-08,86212.0,86211.0,0.3982667]
[1743083502617,3e-08,86212.0,86211.0,0.2482667]
[1743083503813,0.00017397,86224.0,86223.0,0.1160108]
[1743083504012,0.00017397,86224.0,86223.0,0.6060508]
[1743083504416,0.00017397,86224.0,86223.0,0.4774908]
[1743083504605,0.00017397,86224.0,86223.0,0.6060508]
[1743083504815,0.00017397,86224.0,86223.0,0.8479508]
[1743083505021,7e-08,86224.0,86223.0,0.8479508]
[1743083505219,0.2389,86251.0,86223.0,2.21018]
[1743083505414,0.3562648,86258.0,86257.0,0.115965]
[1743083505613,0.24098,86258.0,86257.0,0.116645]
[1743083505808,0.3569437,86258.0,86257.0,0.00068]
[1743083506010,0.3569437,86258.0,86257.0,0.116645]
[1743083506215,0.4569437,86258.0,86257.0,0.36148]
[1743083506717,0.2166437,86258.0,86257.0,0.36148]
[1743083507315,0.2166437,86258.0,86257.0,0.477445]
[1743083507723,0.2176437,86258.0,86257.0,0.36148]
[1743083508423,0.4472437,86258.0,86257.0,0.477445]
[1743083508627,0.6970437,86258.0,86257.0,0.477445]
[1743083509516,0.6960437,86258.0,86257.0,0.477445]
[1743083509715,0.6970437,86258.0,86257.0,0.477445]
[1743083510221,0.6960437,86258.0,86257.0,0.477445]
[1743083510427,0.58108,86258.0,86257.0,0.477445]
[1743083510720,0.58108,86258.0,86257.0,0.722245]
[1743083510721,0.6970437,86258.0,86257.0,0.722245]
[1743083510920,0.58108,86258.0,86257.0,0.722245]
[1743083511126,0.6970437,86258.0,86257.0,0.722245]
[1743083512522,0.6970437,86258.0,86257.0,0.477445]
[1743083512922,0.6970437,86258.0,86257.0,0.00068]
[1743083513126,0.1159744,86250.0,86249.0,0.00017397]
[1743083513327,0.4774944,86250.0,86249.0,0.00017397]
[1743083514025,0.83132,86250.0,86245.0,8e-05]
[1743083514216,0.83132,86250.0,86218.0,0.3608]
[1743083514217,0.0579972,86236.0,86229.0,0.05974048]
[1743083514420,0.1160013,86230.0,86229.0,0.06034048]
[1743083514625,0.1166813,86230.0,86229.0,0.06034048]
[1743083515127,0.1166813,86230.0,86229.0,0.0006]
[1743083515427,0.1160067,86226.0,86225.0,0.3457412]
[1743083515626,0.1167667,86226.0,86225.0,0.3464212]
[1743083516126,0.3562667,86226.0,86225.0,0.3464212]
[1743083517436,0.6970667,86226.0,86225.0,0.3464212]
[1743083517639,0.0580067,86221.0,86208.0,8e-05]
[1743083517825,0.4768202,86216.0,86215.0,0.41585777]
[1743083518027,0.1160431,86199.0,86198.0,0.3627444]
[1743083518236,0.1160471,86196.0,86195.0,0.00068]
[1743083518436,0.11712711,86196.0,86195.0,0.0012]
[1743083518629,0.11712711,86196.0,86195.0,0.0006]
[1743083518832,0.59312711,86196.0,86195.0,0.0006]
[1743083519028,0.1160538,86191.0,86190.0,0.2467]
[1743083519228,0.11717381,86191.0,86190.0,0.24734]
[1743083519829,0.11717381,86191.0,86190.0,0.00064]
[1743083520031,0.11117381,86191.0,86190.0,0.00064]
[1743083520430,0.11117381,86191.0,86179.0,0.1160692]
[1743083520431,0.23592001,86191.0,86172.0,0.00174059]
[1743083520636,0.1160781,86173.0,86172.0,0.24844059]
[1743083520948,0.1113981,86173.0,86172.0,0.24844059]
[1743083521633,0.6094981,86173.0,86172.0,0.00234059]
[1743083522029,0.9702981,86173.0,86172.0,0.00234059]
[1743083522233,0.1160862,86167.0,86166.0,0.4849324]
[1743083522432,0.2522062,86167.0,86166.0,0.4855324]
[1743083522636,0.2512062,86167.0,86166.0,0.4855324]
[1743083523435,0.1165662,86167.0,86166.0,0.4855324]
[1743083524846,0.1165662,86167.0,86166.0,0.0006]
[1743083525142,0.1160888,86165.0,86164.0,0.00017397]
[1743083525326,0.1160888,86165.0,86164.0,0.00085397]
[1743083525535,0.1176088,86165.0,86164.0,0.0006]
[1743083525737,0.1160983,86158.0,86157.0,8e-05]
[1743083526036,0.1161104,86149.0,86148.0,0.2416]
[1743083526237,0.1179504,86149.0,86148.0,0.2416]
[1743083526536,0.00184,86149.0,86148.0,0.3577118]
[1743083526844,0.1161039,86154.0,86153.0,0.116105]
[1743083527045,0.11790391,86154.0,86153.0,0.116105]
[1743083527931,0.1161064,86152.0,86149.0,0.0580551]
[1743083528135,0.1161064,86152.0,86150.0,0.2365]
[1743083528136,0.1161077,86151.0,86150.0,0.2365]
[1743083528344,0.37258771,86151.0,86150.0,0.2365]
[1743083528647,0.37258771,86151.0,86150.0,0.3526091]
[1743083529145,0.37258771,86151.0,86150.0,0.2365]
[1743083530147,0.47258771,86151.0,86150.0,0.2365]
[1743083530539,0.1161131,86147.0,86146.0,8e-05]
[1743083530847,0.1161212,86141.0,86136.0,0.2413]
[1743083531048,0.1161212,86141.0,86136.0,0.24138]
[1743083531049,0.47880121,86141.0,86136.0,0.24138]
[1743083531343,0.00188001,86141.0,86140.0,0.11623955]
[1743083531542,0.11800121,86141.0,86140.0,0.00011705]
[1743083531737,0.21800121,86141.0,86140.0,0.00011705]
[1743083532745,0.68530121,86141.0,86140.0,0.00011705]
[1743083532950,0.33398001,86141.0,86140.0,0.11623955]
[1743083533149,0.33398001,86141.0,86140.0,0.11723955]
[1743083533547,0.45010121,86141.0,86140.0,0.00111705]
[1743083534143,0.68530121,86141.0,86140.0,0.00111705]
[1743083534742,0.45010121,86141.0,86140.0,0.00111705]
[1743083535144,0.33398001,86141.0,86140.0,0.00111705]
[1743083535350,0.33398001,86141.0,86140.0,0.11723955]
[1743083535849,0.33398001,86141.0,86140.0,0.59383955]
[1743083536064,0.10188001,86141.0,86140.0,0.59383955]
[1743083536264,0.1161038,86155.0,86154.0,0.1161022]
[1743083536457,0.1161023,86155.0,86154.0,0.0006]
[1743083536651,0.00124001,86155.0,86154.0,0.3564037]
[1743083536854,0.2394,86156.0,86155.0,0.1161023]
[1743083537054,0.355501,86156.0,86155.0,0.1167823]
[1743083537359,0.00132,86156.0,86155.0,0.72508882]
[1743083537662,0.3608,86183.0,86163.0,0.1160912]
[1743083537852,0.1160888,86165.0,86164.0,0.4766]
[1743083538163,0.1173688,86165.0,86164.0,0.4772]
[1743083538365,0.1173688,86165.0,86164.0,0.5932902]
[1743083538755,0.24788,86165.0,86164.0,0.5932902]
[1743083538955,0.00128,86165.0,86164.0,0.5932902]
[1743083539152,0.3626822,86171.0,86170.0,0.1160821]
[1743083539465,0.36392221,86171.0,86170.0,0.0006]
[1743083539659,0.61342221,86171.0,86170.0,0.0006]
[1743083540166,0.61342221,86171.0,86170.0,0.1166821]
[1743083540167,0.71342221,86171.0,86170.0,0.1166821]
[1743083540460,0.71342221,86171.0,86170.0,0.0006]
[1743083540461,0.71642221,86171.0,86170.0,0.0006]
[1743083540668,0.71642221,86171.0,86170.0,0.1166821]
[1743083540669,0.46692081,86171.0,86170.0,0.1166821]
[1743083540868,0.35084001,86171.0,86170.0,0.1166821]
[1743083541364,0.35084001,86171.0,86170.0,0.6076821]
[1743083541567,0.46692081,86171.0,86170.0,0.4916]
[1743083541762,0.46692081,86171.0,86170.0,0.2498]
[1743083541958,0.46692081,86171.0,86170.0,0.2492]
[1743083542162,0.46692081,86171.0,86170.0,0.3658821]
[1743083542659,0.46692081,86171.0,86170.0,0.2498]
[1743083543770,0.1160875,86166.0,86165.0,0.1160876]
[1743083543966,0.4782075,86166.0,86165.0,0.0006]
[1743083544562,0.7190075,86166.0,86165.0,0.0006]
[1743083544765,0.7190075,86166.0,86165.0,0.1166888]
[1743083544960,0.8190075,86166.0,86165.0,0.0006]
[1743083545268,0.8190075,86166.0,86165.0,0.1166888]
[1743083545470,0.8190075,86166.0,86165.0,0.2426]
[1743083545763,0.8190075,86166.0,86165.0,0.3586888]
[1743083545971,0.8210075,86166.0,86165.0,0.3586888]
[1743083546465,0.8210075,86166.0,86165.0,0.5971888]
[1743083546671,0.8210075,86166.0,86165.0,0.2426]
[1743083546860,0.8210075,86166.0,86165.0,0.3586888]
[1743083547061,0.70492,86166.0,86165.0,0.3586888]
[1743083547260,0.8210075,86166.0,86165.0,0.3586888]
[1743083547459,0.8210075,86166.0,86165.0,0.6040888]
[1743083547669,0.8210075,86166.0,86165.0,0.488]
[1743083547868,1.0618075,86166.0,86165.0,0.6040888]
[1743083548675,1.0618075,86166.0,86165.0,0.0006]
[1743083549068,1.0618075,86166.0,86163.0,0.1160905]
[1743083549069,0.1741366,86164.0,86163.0,0.1160905]
[1743083549266,0.17537661,86164.0,86163.0,0.1160905]
[1743083549467,0.17537661,86164.0,86163.0,0.1167705]
[1743083549665,0.0580482,86160.0,86156.0,0.00025408]
[1743083549869,0.0580565,86147.0,86134.0,0.2448]
[1743083550064,0.1161158,86145.0,86144.0,0.27767842]
[1743083550274,0.1175558,86145.0,86144.0,0.27767842]
[1743083550464,0.5890558,86145.0,86144.0,0.27767842]
[1743083551768,0.1175558,86145.0,86144.0,0.39379552]
[1743083551967,0.2161158,86145.0,86144.0,0.39379552]
[1743083552166,0.2175558,86145.0,86144.0,0.39379552]
[1743083552561,0.2175558,86145.0,86144.0,0.86199552]
[1743083552762,0.10144,86145.0,86144.0,0.86199552]
[1743083552965,0.1,86145.0,86144.0,0.86199552]
[1743083553168,0.2161158,86145.0,86144.0,0.74587842]
[1743083553375,0.2175558,86145.0,86144.0,0.50997842]
[1743083553572,0.6980558,86145.0,86144.0,0.2329]
[1743083554374,0.58194,86145.0,86144.0,0.3490171]
[1743083554571,0.6980558,86145.0,86144.0,0.3490171]
[1743083555367,0.6980558,86145.0,86144.0,0.2329]
[1743083555564,0.58194,86145.0,86144.0,0.2329]
[1743083555770,0.58194,86145.0,86144.0,0.3490171]
[1743083555963,0.6980558,86145.0,86144.0,0.2329]
[1743083556764,0.6980558,86145.0,86144.0,0.0006]
[1743083556974,0.1161198,86142.0,86141.0,8e-05]
[1743083557168,0.058061,86141.0,86135.0,0.0580642]
[1743083557371,0.5439007,86141.0,86136.0,0.05878045]
[1743083557674,0.1161266,86137.0,86136.0,0.23971705]
[1743083557876,0.1175666,86137.0,86136.0,0.23971705]
[1743083558071,0.6019666,86137.0,86136.0,0.23971705]
[1743083558264,0.6019666,86137.0,86136.0,0.35584495]
[1743083558468,0.6019666,86137.0,86136.0,0.23971705]
[1743083558871,0.6019666,86137.0,86136.0,0.35584495]
[1743083559076,0.24724,86137.0,86136.0,0.35584495]
[1743083559277,0.11628018,86153.0,86150.0,0.1741602]
[1743083559573,0.11735908,86153.0,86152.0,0.1161064]
[1743083559775,0.00125408,86153.0,86152.0,0.1167464]
[1743083559977,0.00125408,86153.0,86152.0,0.3507464]
[1743083560177,0.21735908,86153.0,86152.0,0.3507464]
[1743083560475,0.21739909,86153.0,86152.0,0.3507464]
[1743083560674,0.21739909,86153.0,86152.0,0.23464]
[1743083560675,0.45729909,86153.0,86152.0,0.23464]
[1743083560877,0.70919909,86153.0,86152.0,0.23464]
[1743083561079,0.70919909,86153.0,86152.0,0.3507464]
[1743083561384,0.70919909,86153.0,86152.0,0.23464]
[1743083561579,0.70919909,86153.0,86152.0,0.3507464]
[1743083562083,0.70919909,86153.0,86152.0,0.23464]
[1743083562280,0.70919909,86153.0,86152.0,0.00064]
[1743083562483,0.1161171,86146.0,86145.0,0.1741717]
[1743083562776,0.11715711,86146.0,86145.0,0.232828]
[1743083562982,0.3532171,86146.0,86145.0,0.232828]
[1743083563185,0.35425711,86146.0,86145.0,0.727828]
[1743083563388,0.35425711,86146.0,86145.0,0.5536563]
[1743083563992,0.45425711,86146.0,86145.0,0.5536563]
[1743083564681,0.45425711,86146.0,86145.0,0.2477]
[1743083564885,0.68595711,86146.0,86145.0,0.0006]
[1743083565077,0.68595711,86146.0,86144.0,8e-05]
[1743083565078,0.1161158,86145.0,86144.0,8e-05]
[1743083565273,0.1161252,86138.0,86137.0,0.2471]
[1743083565482,0.1172052,86138.0,86137.0,0.24778]
[1743083565679,0.6104052,86138.0,86137.0,0.24778]
[1743083567183,0.6104052,86138.0,86137.0,0.3639066]
[1743083567381,0.34538,86138.0,86137.0,0.6059066]
[1743083567781,0.4615052,86138.0,86137.0,0.6059066]
[1743083568387,0.34538,86138.0,86137.0,0.6059066]
[1743083568581,0.10108,86138.0,86137.0,0.6059066]
[1743083568989,0.1023498,86152.0,86151.0,0.1161077]
[1743083569183,0.1030698,86152.0,86151.0,0.1167077]
[1743083569492,0.0580452,86164.0,86161.0,0.1160942]
[1743083569687,0.17114643,86162.0,86161.0,0.1168142]
[1743083569988,0.17114643,86162.0,86161.0,0.5972142]
[1743083570794,0.17514643,86162.0,86161.0,0.5972142]
[1743083571187,0.27514643,86162.0,86161.0,0.5972142]
[1743083571387,0.27314643,86162.0,86161.0,0.5972142]